[Event "11th dMP Batavia 2019"]
[Site "Amsterdam"]
[Date "2019.03.01"]
[Round "1"]
[White "Leenhouts, Koen"]
[Black "Williams, Simon K"]
[Result "1/2-1/2"]
[ECO "D07"]
[WhiteElo "2447"]
[BlackElo "2471"]
[Annotator "ChessBase"]
[PlyCount "53"]
[EventDate "2019.03.01"]
[EventType "tourn"]
[EventCountry "NED"]
[SourceTitle "playchess.com"]
[Source "ChessBase"]
[SourceQuality "1"]
[TimeControl "40/5400+30:1800+30"]

1. d4 {[%emt 0:00:00]} d5 {[%emt 0:00:00]} 2. c4 {[%emt 0:00:00]} Nc6 {[%emt 0:00:00]} 3. Nc3 {[%emt 0:02:04]} Nf6 {[%emt 0:00:30]} 4. cxd5 {[%emt 0:01:42]} Nxd5 {[%emt 0:00:07]} 5. Nf3 {[%emt 0:00:28]} e5 {[%emt 0:00:23]} 6. dxe5 {[%emt 0:04:17]} Bb4 {[%emt 0:00:15]} 7. Bd2 {[%emt 0:05:34]} Nxc3 {[%emt 0:00:13]} 8. bxc3 {[%emt 0:01:41]} Ba5 {[%emt 0:00:05]} 9. g3 {[%emt 0:03:16]} O-O {[%emt 0:11:49]} 10. Qc2 {[%emt 0:02:48]} Qe7 {[%emt 0:05:23]} 11. Ng5 {[%emt 0:10:00]} g6 {[%emt 0:00:41]} 12. f4 {[%emt 0:07:00]} f6 {[%emt 0:03:30]} 13. exf6 {[%emt 0:01:18]} Rxf6 {[%emt 0:03:49]} 14. Bg2 {[%emt 0:08:27]} Bb6 {[%emt 0:01:03]} 15. Qe4 {[%emt 0:07:37]} Qa3 {[%emt 0:08:51]} 16. Qc4+ {[%emt 0:08:03]} Kg7 {[%emt 0:00:20]} 17. Bxc6 {[%emt 0:00:44]} bxc6 {[%emt 0:00:32]} 18. Qb4 {[%emt 0:00:46]} Qxb4 {[%emt 0:03:23]} 19. cxb4 {[%emt 0:00:29]} Kg8 {[%emt 0:04:38]} 20. Bc3 {[%emt 0:00:33]} Rf8 {[%emt 0:00:25]} 21. h4 {[%emt 0:08:46]} Bg4 {[%emt 0:01:07]} 22. O-O-O {[%emt 0:02:53]} Rfe8 {[%emt 0:03:23]} 23. Be5 {[%emt 0:02:29]} Red8 {[%emt 0:03:10]} 24. Bf6 {[%emt 0:08:01]} Re8 {[%emt 0:07:05]} 25. Be5 {[%emt 0:00:52]} Red8 {[%emt 0:00:43]} 26. Bf6 {[%emt 0:00:06]} Re8 {[%emt 0:00:55]} 27. Be5 {[%emt 0:06:34]} 1/2-1/2

[Event "11th dMP Batavia 2019"]
[Site "Amsterdam"]
[Date "2019.03.01"]
[Round "1"]
[White "Lopez, Jasel"]
[Black "Van der Wiel, John T.H."]
[Result "1/2-1/2"]
[ECO "D58"]
[WhiteElo "2390"]
[BlackElo "2391"]
[Annotator "NA"]
[PlyCount "93"]
[EventDate "2019.03.01"]
[EventType "tourn"]
[EventCountry "NED"]
[SourceTitle "playchess.com"]
[Source "ChessBase"]
[SourceQuality "1"]
[TimeControl "40/5400+30:1800+30"]

1. d4 {[%emt 0:00:00]} Nf6 {[%emt 0:00:00]} 2. c4 {[%emt 0:00:00]} e6 {[%emt 0:00:00]} 3. Nf3 {[%emt 0:00:00]} d5 {[%emt 0:00:04]} 4. Nc3 {[%emt 0:00:52]} Be7 {[%emt 0:00:13]} 5. Bg5 {[%emt 0:00:23]} O-O {[%emt 0:00:25]} 6. e3 {[%emt 0:00:15]} h6 {[%emt 0:00:07]} 7. Bh4 {[%emt 0:00:06]} b6 {[%emt 0:00:43]} 8. Be2 {[%emt 0:03:55]} Bb7 {[%emt 0:00:37]} 9. Bxf6 {[%emt 0:00:19]} Bxf6 {[%emt 0:00:31]} 10. cxd5 {[%emt 0:00:11]} exd5 {[%emt 0:00:33]} 11. b4 {[%emt 0:00:11]} c6 {[%emt 0:00:54]} 12. O-O {[%emt 0:01:04]} a5 {[%emt 0:03:45]} 13. b5 {[%emt 0:02:55]} c5 {[%emt 0:00:39]} 14. Ne5 {[%emt 0:01:07]} Bxe5 {[%emt 0:43:17]} 15. dxe5 {[%emt 0:00:13]} d4 {[%emt 0:00:09]} 16. Na4 {[%emt 0:18:10]} Qg5 {[%emt 0:05:10]} 17. Bg4 {[%emt 0:00:17]} Qxe5 {[%emt 0:10:04]} 18. Nxb6 {[%emt 0:14:57]} Ra7 {[%emt 0:00:40]} 19. exd4 {[%emt 0:02:51]} cxd4 {[%emt 0:01:10]} 20. Rc1 {[%emt 0:00:22]} Qxb5 {[%emt 0:12:31]} 21. Qxd4 {[%emt 0:00:24]} Qg5 {[%emt 0:03:42]} 22. Nd7 {[%emt 0:21:39]} Nxd7 {[%emt 0:02:53]} 23. Qxa7 {[%emt 0:04:53]} Bxg2 {[%emt 0:00:39]} 24. Qxd7 {[%emt 0:00:27]} f5 {[%emt 0:04:22]} 25. Rc8 {[%emt 0:08:09]} Qxg4 {[%emt 0:02:02]} 26. Rxf8+ {[%emt 0:00:05]} Kxf8 {[%emt 0:00:10]} 27. Qd6+ {[%emt 0:01:15]} Kf7 {[%emt 0:04:11]} 28. Re1 {[%emt 0:00:04]} Bd5+ {[%emt 0:00:15]} 29. Qg3 {[%emt 0:00:07]} Qxg3+ {[%emt 0:03:49]} 30. fxg3 {[%emt 0:00:09]} Bxa2 {[%emt 0:00:11]} 31. Re5 {[%emt 0:00:41]} Bb1 {[%emt 0:01:02]} 32. Rxa5 {[%emt 0:00:04]} Kf6 {[%emt 0:00:14]} 33. Kf2 {[%emt 0:00:15]} Kg5 {[%emt 0:00:20]} 34. Rb5 {[%emt 0:02:46]} Bc2 {[%emt 0:00:15]} 35. h3 {[%emt 0:02:24]} Kf6 {[%emt 0:00:45]} 36. Ke3 {[%emt 0:00:13]} Ke6 {[%emt 0:01:03]} 37. Rb6+ {[%emt 0:00:25]} Kf7 {[%emt 0:00:15]} 38. Kf4 {[%emt 0:01:04]} Bd3 {[%emt 0:00:35]} 39. h4 {[%emt 0:05:40]} Bc2 {[%emt 0:00:16]} 40. Rb2 {[%emt 0:02:32]} Bd3 {[%emt 0:00:19]} 41. Ke3 {[%emt 0:30:32]} Bf1 {[%emt 0:04:32]} 42. Rb1 {[%emt 0:00:00]} Bh3 {[%emt 0:02:45]} 43. Kf4 {[%emt 0:00:00]} Bg4 {[%emt 0:01:24]} 44. Rb6 {[%emt 0:00:00]} Bh3 {[%emt 0:03:38]} 45. Ke5 {[%emt 0:00:00]} Bg4 {[%emt 0:00:30]} 46. Rb7+ {[%emt 0:00:00]} Kf8 {[%emt 0:04:08]} 47. Rb8+ {[%emt 0:00:00]} 1/2-1/2

[Event "11th dMP Batavia 2019"]
[Site "Amsterdam"]
[Date "2019.03.02"]
[Round "2"]
[White "Kuipers, Stefan"]
[Black "Leenhouts, Koen"]
[Result "1-0"]
[ECO "C54"]
[WhiteElo "2455"]
[BlackElo "2447"]
[Annotator "RC"]
[PlyCount "109"]
[EventDate "2019.03.01"]
[EventType "tourn"]
[EventCountry "NED"]
[SourceTitle "playchess.com"]
[Source "ChessBase"]
[SourceQuality "1"]
[TimeControl "40/5400+30:1800+30"]

1. e4 {[%emt 0:00:00]} e5 {[%emt 0:00:00]} 2. Nf3 {[%emt 0:00:00]} Nc6 {[%emt 0:00:00]} 3. Bc4 {[%emt 0:00:00]} Bc5 {[%emt 0:00:00]} 4. c3 {[%emt 0:00:00]} Nf6 {[%emt 0:00:00]} 5. d3 {[%emt 0:00:00]} O-O {[%emt 0:00:04]} 6. Bg5 {[%emt 0:00:00]} h6 {[%emt 0:00:06]} 7. Bh4 {[%emt 0:00:02]} Be7 {[%emt 0:00:06]} 8. Nbd2 {[%emt 0:00:18]} d6 {[%emt 0:00:25]} 9. Bb3 {[%emt 0:00:06]} Nh5 {[%emt 0:01:12]} 10. g3 {[%emt 0:00:05]} g6 {[%emt 0:00:40]} 11. Qe2 {[%emt 0:07:01]} Kg7 {[%emt 0:05:57]} 12. Bxe7 {[%emt 0:11:19]} Qxe7 {[%emt 0:01:29]} 13. d4 {[%emt 0:11:46]} Bh3 {[%emt 0:14:40]} 14. dxe5 {[%emt 0:06:48]} Nxe5 {[%emt 0:07:41]} 15. O-O-O {[%emt 0:05:12]} a5 {[%emt 0:05:57]} 16. Nxe5 {[%emt 0:23:46]} dxe5 {[%emt 0:00:15]} 17. Qe3 {[%emt 0:14:20]} b5 {[%emt 0:08:19]} 18. f4 {[%emt 0:04:21]} Nf6 {[%emt 0:08:46]} 19. f5 {[%emt 0:05:33]} a4 {[%emt 0:05:37]} 20. Bc2 {[%emt 0:00:06]} Ng4 {[%emt 0:00:20]} 21. Qe2 {[%emt 0:04:17]} b4 {[%emt 0:11:56]} 22. Nc4 {[%emt 0:01:41]} Rfb8 {[%emt 0:03:01]} 23. Rd5 {[%emt 0:00:45]} bxc3 {[%emt 0:08:20]} 24. bxc3 {[%emt 0:00:04]} Ra6 {[%emt 0:01:27]} 25. Rhd1 {[%emt 0:01:30]} Rc6 {[%emt 0:00:20]} 26. Bxa4 {[%emt 0:00:31]} Rxc4 {[%emt 0:02:51]} 27. Qxc4 {[%emt 0:00:02]} Qa3+ {[%emt 0:00:50]} 28. Kd2 {[%emt 0:00:01]} Rb2+ {[%emt 0:00:09]} 29. Kd3 {[%emt 0:02:33]} gxf5 {[%emt 0:06:02]} 30. exf5 {[%emt 0:01:29]} e4+ {[%emt 0:01:08]} 31. Kd4 {[%emt 0:00:40]} Qe7 {[%emt 0:00:34]} 32. Qc6 {[%emt 0:03:11]} Rb6 {[%emt 0:02:31]} 33. Qc5 {[%emt 0:00:00]} Qf6+ {[%emt 0:00:23]} 34. Kc4 {[%emt 0:00:00]} Ra6 {[%emt 0:03:08]} 35. Kb4 {[%emt 0:00:00]} Bg2 {[%emt 0:02:26]} 36. Rd8 {[%emt 0:00:00]} Rb6+ {[%emt 0:00:20]} 37. Ka3 {[%emt 0:00:00]} Kh7 {[%emt 0:00:30]} 38. Bb3 {[%emt 0:00:00]} Ne5 {[%emt 0:00:19]} 39. Qxc7 {[%emt 0:01:00]} Rc6 {[%emt 0:01:36]} 40. R8d6 {[%emt 0:00:53]} Nc4+ {[%emt 0:00:00]} 41. Kb4 {[%emt 0:04:58]} Rxd6 {[%emt 0:01:17]} 42. Qxc4 {[%emt 0:00:48]} e3 {[%emt 0:01:23]} 43. Re1 {[%emt 0:06:18]} Rb6+ {[%emt 0:15:36]} 44. Ka3 {[%emt 0:00:04]} Qd6+ {[%emt 0:00:06]} 45. Kb2 {[%emt 0:00:02]} Qd2+ {[%emt 0:00:06]} 46. Ka3 {[%emt 0:00:02]} Qd6+ {[%emt 0:00:05]} 47. Kb2 {[%emt 0:00:03]} Qd2+ {[%emt 0:00:08]} 48. Ka3 {[%emt 0:00:03]} Rb7 {[%emt 0:05:09]} 49. Re2 {[%emt 0:07:01]} Ra7+ {[%emt 0:01:10]} 50. Ba4 {[%emt 0:00:07]} Qd6+ {[%emt 0:04:25]} 51. Kb2 {[%emt 0:00:16]} Bf1 {[%emt 0:01:56]} 52. f6 {[%emt 0:01:47]} Qb8+ {[%emt 0:03:18]} 53. Bb3 {[%emt 0:01:32]} Bxe2 {[%emt 0:00:12]} 54. Qe4+ {[%emt 0:00:30]} Kh8 {[%emt 0:01:10]} 55. Qxe3 {[%emt 0:00:05]} 1-0

[Event "11th dMP Batavia 2019"]
[Site "Amsterdam"]
[Date "2019.03.02"]
[Round "2"]
[White "Lahaye, Rick"]
[Black "Van der Wiel, John T.H."]
[Result "1-0"]
[ECO "D02"]
[WhiteElo "2414"]
[BlackElo "2391"]
[Annotator "NA"]
[PlyCount "61"]
[EventDate "2019.03.01"]
[EventType "tourn"]
[EventCountry "NED"]
[SourceTitle "playchess.com"]
[Source "ChessBase"]
[SourceQuality "1"]
[TimeControl "40/5400+30:1800+30"]

1. d4 {[%emt 0:00:00]} Nf6 {[%emt 0:00:00]} 2. Nf3 {[%emt 0:00:00]} e6 {[%emt 0:00:35]} 3. g3 {[%emt 0:00:30]} d5 {[%emt 0:00:43]} 4. Bg2 {[%emt 0:00:23]} c5 {[%emt 0:00:24]} 5. O-O {[%emt 0:00:46]} Nc6 {[%emt 0:00:54]} 6. a3 {[%emt 0:03:55]} cxd4 {[%emt 0:22:38]} 7. Nxd4 {[%emt 0:00:09]} Nxd4 {[%emt 0:00:19]} 8. Qxd4 {[%emt 0:00:16]} Qc7 {[%emt 0:00:08]} 9. Nc3 {[%emt 0:10:17]} Bc5 {[%emt 0:07:58]} 10. Qd3 {[%emt 0:00:11]} O-O {[%emt 0:00:27]} 11. Bf4 {[%emt 0:19:44]} Qe7 {[%emt 0:06:58]} 12. Rad1 {[%emt 0:11:52]} h6 {[%emt 0:24:15]} 13. Be5 {[%emt 0:07:48]} Nd7 {[%emt 0:17:44]} 14. Bd4 {[%emt 0:02:01]} Bxd4 {[%emt 0:03:07]} 15. Qxd4 {[%emt 0:00:08]} Nb6 {[%emt 0:00:20]} 16. e4 {[%emt 0:06:03]} dxe4 {[%emt 0:02:54]} 17. Qxe4 {[%emt 0:03:23]} Rb8 {[%emt 0:02:26]} 18. Nb5 {[%emt 0:03:55]} Bd7 {[%emt 0:03:42]} 19. Nxa7 {[%emt 0:04:23]} Qc5 {[%emt 0:01:05]} 20. Qb4 {[%emt 0:02:39]} Qxb4 {[%emt 0:01:19]} 21. axb4 {[%emt 0:00:01]} Rfd8 {[%emt 0:01:49]} 22. Rd6 {[%emt 0:11:54]} Nc4 {[%emt 0:00:12]} 23. Rd4 {[%emt 0:00:04]} Nxb2 {[%emt 0:00:27]} 24. b5 {[%emt 0:00:04]} Ra8 {[%emt 0:00:56]} 25. Ra1 {[%emt 0:03:03]} e5 {[%emt 0:00:31]} 26. Rb4 {[%emt 0:00:35]} Be6 {[%emt 0:00:21]} 27. b6 {[%emt 0:01:32]} Nc4 {[%emt 0:00:43]} 28. Bxb7 {[%emt 0:00:10]} Rab8 {[%emt 0:00:33]} 29. Nc6 {[%emt 0:00:14]} Rxb7 {[%emt 0:00:21]} 30. Nxd8 {[%emt 0:00:20]} Rxb6 {[%emt 0:00:08]} 31. Rxb6 {[%emt 0:00:25]} 1-0

[Event "11th dMP Batavia 2019"]
[Site "Amsterdam"]
[Date "2019.03.02"]
[Round "2.3"]
[White "Williams, Simon K"]
[Black "Lopez, Jasel"]
[Result "1-0"]
[ECO "A03"]
[WhiteElo "2471"]
[BlackElo "2390"]
[Annotator "RC"]
[PlyCount "83"]
[EventDate "2019.03.01"]
[EventType "tourn"]
[EventCountry "NED"]
[SourceTitle "playchess.com"]
[Source "ChessBase"]
[SourceQuality "1"]
[TimeControl "300+3"]

1. f4 {[%emt 0:00:00]} d5 {[%emt 0:00:00]} 2. e3 {[%emt 0:00:01]} g6 {[%emt 0:00:03]} 3. Nf3 {[%emt 0:00:02]} Bg7 {[%emt 0:00:01]} 4. g3 {[%emt 0:00:02]} Nf6 {[%emt 0:00:01]} 5. Bg2 {[%emt 0:00:01]} O-O {[%emt 0:00:02]} 6. O-O {[%emt 0:00:02]} c5 {[%emt 0:00:02]} 7. d3 {[%emt 0:00:02]} Nc6 {[%emt 0:00:07]} 8. Ne5 {[%emt 0:00:03]} Qc7 {[%emt 0:00:31]} 9. Nxc6 {[%emt 0:00:02]} bxc6 {[%emt 0:00:02]} 10. e4 {[%emt 0:00:05]} e5 {[%emt 0:00:02]} 11. f5 {[%emt 0:00:02]} gxf5 {[%emt 0:00:20]} 12. exf5 {[%emt 0:00:02]} c4 {[%emt 0:00:41]} 13. dxc4 {[%emt 0:00:06]} e4 {[%emt 0:01:03]} 14. Kh1 {[%emt 0:00:21]} Re8 {[%emt 0:00:11]} 15. Be3 {[%emt 0:00:19]} Ba6 {[%emt 0:00:03]} 16. Na3 {[%emt 0:00:17]} Rad8 {[%emt 0:00:03]} 17. c3 {[%emt 0:00:07]} c5 {[%emt 0:00:12]} 18. g4 {[%emt 0:00:31]} h6 {[%emt 0:00:10]} 19. g5 {[%emt 0:00:29]} hxg5 {[%emt 0:00:02]} 20. Bxg5 {[%emt 0:00:01]} d4 {[%emt 0:00:13]} 21. Qe1 {[%emt 0:00:09]} Qb6 {[%emt 0:01:26]} 22. Qh4 {[%emt 0:00:07]} e3 {[%emt 0:00:12]} 23. Rg1 {[%emt 0:00:12]} Kf8 {[%emt 0:00:13]} 24. Nc2 {[%emt 0:00:50]} Bb7 {[%emt 0:00:01]} 25. b4 {[%emt 0:00:21]} Re4 {[%emt 0:00:09]} 26. Qh3 {[%emt 0:00:13]} Ng4 {[%emt 0:00:01]} 27. Bh4 {[%emt 0:00:09]} d3 {[%emt 0:00:02]} 28. bxc5 {[%emt 0:00:16]} Qh6 {[%emt 0:00:01]} 29. Nd4 {[%emt 0:00:19]} Rdxd4 {[%emt 0:00:09]} 30. cxd4 {[%emt 0:00:02]} Bxd4 {[%emt 0:00:02]} 31. Rab1 {[%emt 0:00:01]} Bc6 {[%emt 0:00:06]} 32. Rb8+ {[%emt 0:00:02]} Kg7 {[%emt 0:00:00]} 33. Rc8 {[%emt 0:00:27]} e2 {[%emt 0:00:07]} 34. f6+ {[%emt 0:00:11]} Kh7 {[%emt 0:00:09]} 35. Rxc6 {[%emt 0:00:04]} Nf2+ {[%emt 0:00:01]} 36. Bxf2 {[%emt 0:00:02]} Qxh3 {[%emt 0:00:06]} 37. Bxe4+ {[%emt 0:00:17]} Kh6 {[%emt 0:00:00]} 38. Bxd4 {[%emt 0:00:10]} d2 {[%emt 0:00:00]} 39. Rc8 {[%emt 0:00:01]} Qxc8 {[%emt 0:00:04]} 40. Be3+ {[%emt 0:00:01]} Kh5 {[%emt 0:00:01]} 41. Bf3+ {[%emt 0:00:02]} Kh4 {[%emt 0:00:01]} 42. Bf2+ {[%emt 0:00:03]} 1-0

[Event "11th dMP Batavia 2019"]
[Site "Amsterdam"]
[Date "2019.03.02"]
[Round "2.5"]
[White "Kuipers, Stefan"]
[Black "Leenhouts, Koen"]
[Result "1-0"]
[ECO "B48"]
[WhiteElo "2455"]
[BlackElo "2447"]
[Annotator "ChessBase"]
[PlyCount "65"]
[EventDate "2019.03.01"]
[EventType "tourn"]
[EventCountry "NED"]
[SourceTitle "playchess.com"]
[Source "ChessBase"]
[SourceQuality "1"]
[TimeControl "300+3"]

1. e4 {[%emt 0:00:00]} c5 {[%emt 0:00:00]} 2. Nf3 {[%emt 0:00:00]} e6 {[%emt 0:00:00]} 3. d4 {[%emt 0:00:00]} cxd4 {[%emt 0:00:00]} 4. Nxd4 {[%emt 0:00:02]} Nc6 {[%emt 0:00:01]} 5. Nc3 {[%emt 0:00:00]} Qc7 {[%emt 0:00:01]} 6. Be3 {[%emt 0:00:02]} a6 {[%emt 0:00:01]} 7. Qf3 {[%emt 0:00:01]} Nf6 {[%emt 0:00:01]} 8. O-O-O {[%emt 0:00:03]} Ne5 {[%emt 0:00:01]} 9. Qg3 {[%emt 0:00:10]} b5 {[%emt 0:00:01]} 10. f4 {[%emt 0:00:04]} Neg4 {[%emt 0:00:02]} 11. Bg1 {[%emt 0:00:03]} Nh6 {[%emt 0:00:02]} 12. Bd3 {[%emt 0:00:23]} b4 {[%emt 0:00:02]} 13. Nce2 {[%emt 0:00:51]} Bb7 {[%emt 0:00:01]} 14. Qf3 {[%emt 0:00:16]} d5 {[%emt 0:00:12]} 15. e5 {[%emt 0:00:02]} Ne4 {[%emt 0:00:01]} 16. g4 {[%emt 0:00:40]} g6 {[%emt 0:00:12]} 17. h4 {[%emt 0:00:24]} Bg7 {[%emt 0:00:19]} 18. Ng3 {[%emt 0:00:14]} Nc5 {[%emt 0:01:17]} 19. Kb1 {[%emt 0:00:06]} Ng8 {[%emt 0:00:26]} 20. h5 {[%emt 0:00:08]} g5 {[%emt 0:00:09]} 21. h6 {[%emt 0:00:10]} Nxh6 {[%emt 0:00:10]} 22. Nh5 {[%emt 0:00:03]} Bf8 {[%emt 0:00:06]} 23. Nf6+ {[%emt 0:00:05]} Kd8 {[%emt 0:00:02]} 24. Nxh7 {[%emt 0:01:06]} Nxd3 {[%emt 0:00:34]} 25. Qxd3 {[%emt 0:00:01]} Nxg4 {[%emt 0:00:13]} 26. Nxf8 {[%emt 0:00:02]} Rxf8 {[%emt 0:00:03]} 27. Qg3 {[%emt 0:00:01]} gxf4 {[%emt 0:00:29]} 28. Qxg4 {[%emt 0:00:06]} Qxe5 {[%emt 0:00:01]} 29. Bf2 {[%emt 0:00:08]} Kc7 {[%emt 0:00:20]} 30. Rhe1 {[%emt 0:00:02]} Qf6 {[%emt 0:00:03]} 31. Bh4 {[%emt 0:00:07]} Qh8 {[%emt 0:00:36]} 32. Qxf4+ {[%emt 0:00:02]} Kc8 {[%emt 0:00:03]} 33. Bg3 {[%emt 0:00:05]} 1-0

[Event "11th dMP Batavia 2019"]
[Site "Amsterdam"]
[Date "2019.03.03"]
[Round "3"]
[White "Warmerdam, Max"]
[Black "Lahaye, Rick"]
[Result "1/2-1/2"]
[ECO "D30"]
[WhiteElo "2448"]
[BlackElo "2414"]
[Annotator "NA RC"]
[PlyCount "63"]
[EventDate "2019.03.01"]
[EventType "tourn"]
[EventCountry "NED"]
[SourceTitle "playchess.com"]
[Source "ChessBase"]
[SourceQuality "1"]
[TimeControl "40/5400+30:1800+30"]

1. d4 {[%emt 0:00:00]} d5 {[%emt 0:00:45]} 2. c4 {[%emt 0:00:00]} c6 {[%emt 0:00:39]} 3. Nf3 {[%emt 0:00:00]} e6 {[%emt 0:00:28]} 4. e3 {[%emt 0:01:18]} Nd7 {[%emt 0:00:39]} 5. b3 {[%emt 0:00:58]} Bd6 {[%emt 0:01:05]} 6. Bd3 {[%emt 0:01:46]} Qe7 {[%emt 0:02:15]} 7. O-O {[%emt 0:02:16]} Ngf6 {[%emt 0:07:53]} 8. Bb2 {[%emt 0:13:37]} e5 {[%emt 0:04:23]} 9. dxe5 {[%emt 0:01:58]} Nxe5 {[%emt 0:00:09]} 10. Nxe5 {[%emt 0:05:22]} Bxe5 {[%emt 0:00:05]} 11. Bxe5 {[%emt 0:00:14]} Qxe5 {[%emt 0:00:05]} 12. Nd2 {[%emt 0:00:07]} Bg4 {[%emt 0:06:53]} 13. Qc2 {[%emt 0:07:14]} Rd8 {[%emt 0:05:42]} 14. e4 {[%emt 0:28:31]} dxc4 {[%emt 0:10:41]} 15. Nxc4 {[%emt 0:01:31]} Qd4 {[%emt 0:00:49]} 16. Be2 {[%emt 0:00:57]} Bxe2 {[%emt 0:07:29]} 17. Qxe2 {[%emt 0:00:06]} O-O {[%emt 0:00:05]} 18. Rfe1 {[%emt 0:12:44]} b5 {[%emt 0:19:06]} 19. Rad1 {[%emt 0:09:10]} Qxe4 {[%emt 0:00:58]} 20. Qxe4 {[%emt 0:07:17]} Nxe4 {[%emt 0:00:18]} 21. Rxd8 {[%emt 0:04:03]} Rxd8 {[%emt 0:00:37]} 22. Ne5 {[%emt 0:00:13]} c5 {[%emt 0:21:13]} 23. Nc6 {[%emt 0:00:07]} Rd2 {[%emt 0:00:09]} 24. Nxa7 {[%emt 0:00:10]} b4 {[%emt 0:00:14]} 25. f3 {[%emt 0:00:20]} Nf6 {[%emt 0:00:11]} 26. Re5 {[%emt 0:00:46]} Rc2 {[%emt 0:01:25]} 27. Kf1 {[%emt 0:00:39]} Kf8 {[%emt 0:05:39]} 28. Re2 {[%emt 0:00:05]} Rc1+ {[%emt 0:00:28]} 29. Re1 {[%emt 0:00:53]} Rc2 {[%emt 0:00:45]} 30. Re2 {[%emt 0:00:04]} Rc1+ {[%emt 0:01:51]} 31. Re1 {[%emt 0:00:04]} Rc2 {[%emt 0:01:14]} 32. Re2 {[%emt 0:00:37]} 1/2-1/2

[Event "11th dMP Batavia 2019"]
[Site "Amsterdam"]
[Date "2019.03.03"]
[Round "3"]
[White "Van der Wiel, John T.H."]
[Black "Williams, Simon K"]
[Result "0-1"]
[ECO "B06"]
[WhiteElo "2391"]
[BlackElo "2471"]
[Annotator "RC"]
[PlyCount "64"]
[EventDate "2019.03.01"]
[EventType "tourn"]
[EventCountry "NED"]
[SourceTitle "playchess.com"]
[Source "ChessBase"]
[SourceQuality "1"]
[TimeControl "40/5400+30:1800+30"]

1. e4 {[%emt 0:00:00]} g6 {[%emt 0:00:39]} 2. d4 {[%emt 0:00:00]} Bg7 {[%emt 0:00:12]} 3. Nc3 {[%emt 0:02:19]} d6 {[%emt 0:00:16]} 4. Be3 {[%emt 0:00:16]} a6 {[%emt 0:00:33]} 5. g4 {[%emt 0:00:52]} b5 {[%emt 0:02:11]} 6. Bg2 {[%emt 0:01:18]} Bb7 {[%emt 0:00:18]} 7. Nge2 {[%emt 0:00:57]} Nf6 {[%emt 0:03:13]} 8. Ng3 {[%emt 0:06:13]} b4 {[%emt 0:04:20]} 9. Nb1 {[%emt 0:05:50]} h5 {[%emt 0:06:06]} 10. gxh5 {[%emt 0:11:16]} Nxh5 {[%emt 0:00:27]} 11. a3 {[%emt 0:00:23]} c5 {[%emt 0:12:46]} 12. axb4 {[%emt 0:24:43]} cxd4 {[%emt 0:01:03]} 13. Nxh5 {[%emt 0:00:15]} Rxh5 {[%emt 0:00:44]} 14. Bxd4 {[%emt 0:00:14]} Bxd4 {[%emt 0:02:26]} 15. Qxd4 {[%emt 0:00:47]} Nc6 {[%emt 0:05:03]} 16. Qd2 {[%emt 0:04:19]} Qb6 {[%emt 0:09:25]} 17. Nc3 {[%emt 0:12:32]} Nxb4 {[%emt 0:03:55]} 18. O-O {[%emt 0:01:52]} Rc8 {[%emt 0:02:05]} 19. Na4 {[%emt 0:08:14]} Qb5 {[%emt 0:00:51]} 20. Nc3 {[%emt 0:00:27]} Qe5 {[%emt 0:14:10]} 21. f4 {[%emt 0:02:24]} Qh8 {[%emt 0:00:13]} 22. Ra4 {[%emt 0:04:31]} Rc4 {[%emt 0:05:19]} 23. b3 {[%emt 0:04:48]} Rd4 {[%emt 0:02:09]} 24. Qf2 {[%emt 0:02:44]} Rxh2 {[%emt 0:01:14]} 25. Re1 {[%emt 0:01:54]} Nc6 {[%emt 0:05:16]} 26. Nd5 {[%emt 0:01:27]} Qh4 {[%emt 0:05:39]} 27. Rxd4 {[%emt 0:00:18]} Qxf2+ {[%emt 0:00:16]} 28. Kxf2 {[%emt 0:00:02]} Nxd4 {[%emt 0:00:06]} 29. Kg3 {[%emt 0:02:41]} Rh5 {[%emt 0:01:09]} 30. Ne3 {[%emt 0:00:49]} Rc5 {[%emt 0:00:19]} 31. b4 {[%emt 0:00:27]} Rc3 {[%emt 0:00:21]} 32. Kf2 {[%emt 0:00:14]} Nxc2 {[%emt 0:00:20]} 0-1

[Event "11th dMP Batavia 2019"]
[Site "Amsterdam"]
[Date "2019.03.05"]
[Round "5"]
[White "Pijpers, Arthur"]
[Black "Lahaye, Rick"]
[Result "1-0"]
[ECO "B94"]
[WhiteElo "2482"]
[BlackElo "2414"]
[Annotator "RC"]
[PlyCount "59"]
[EventDate "2019.03.01"]
[EventType "tourn"]
[EventCountry "NED"]
[SourceTitle "playchess.com"]
[Source "ChessBase"]
[SourceQuality "1"]
[TimeControl "40/5400+30:1800+30"]

1. e4 {[%emt 0:00:00]} c5 {[%emt 0:00:00]} 2. Nf3 {[%emt 0:00:00]} d6 {[%emt 0:00:00]} 3. d4 {[%emt 0:00:00]} cxd4 {[%emt 0:00:00]} 4. Nxd4 {[%emt 0:00:00]} Nf6 {[%emt 0:00:00]} 5. Nc3 {[%emt 0:00:00]} a6 {[%emt 0:00:00]} 6. Bg5 {[%emt 0:00:00]} Nbd7 {[%emt 0:01:26]} 7. Bc4 {[%emt 0:00:00]} Qa5 {[%emt 0:14:34]} 8. Qd2 {[%emt 0:00:23]} e6 {[%emt 0:02:00]} 9. O-O-O {[%emt 0:02:04]} Be7 {[%emt 0:10:28]} 10. Kb1 {[%emt 0:20:13]} h6 {[%emt 0:15:50]} 11. Be3 {[%emt 0:01:03]} Ne5 {[%emt 0:02:30]} 12. Bb3 {[%emt 0:00:41]} b5 {[%emt 0:04:59]} 13. f4 {[%emt 0:07:02]} b4 {[%emt 0:05:39]} 14. Na4 {[%emt 0:01:27]} Nxe4 {[%emt 0:01:52]} 15. Qe2 {[%emt 0:08:29]} Bd7 {[%emt 0:02:31]} 16. fxe5 {[%emt 0:04:18]} Bxa4 {[%emt 0:00:24]} 17. Nxe6 {[%emt 0:30:54]} fxe6 {[%emt 0:06:02]} 18. Qh5+ {[%emt 0:00:05]} Kd8 {[%emt 0:01:04]} 19. Bxa4 {[%emt 0:08:28]} Qxa4 {[%emt 0:06:29]} 20. exd6 {[%emt 0:07:59]} Bf6 {[%emt 0:07:25]} 21. Bb6+ {[%emt 0:01:12]} Kc8 {[%emt 0:00:09]} 22. Rhe1 {[%emt 0:00:09]} Qc6 {[%emt 0:13:15]} 23. Qg4 {[%emt 0:04:30]} Nc3+ {[%emt 0:03:11]} 24. bxc3 {[%emt 0:00:03]} Qxb6 {[%emt 0:00:04]} 25. d7+ {[%emt 0:01:37]} Kd8 {[%emt 0:01:39]} 26. Rxe6 {[%emt 0:00:01]} Qb5 {[%emt 0:00:17]} 27. c4 {[%emt 0:00:48]} Qb7 {[%emt 0:00:02]} 28. Rxf6 {[%emt 0:01:15]} b3 {[%emt 0:01:30]} 29. axb3 {[%emt 0:00:06]} gxf6 {[%emt 0:00:33]} 30. Qg7 {[%emt 0:00:05]} 1-0